bitfinex-derivatives/quotes_ETHF0:USTF0_20250213
["timestamp","ask_amount","ask_price","bid_price","bid_amount"]
[1739455271991,6.71425493,2659.1,2657.5,3.2078]
[1739455271992,3.2078,2658.3,2657.5,3.2078]
[1739455272190,0.75245,2657.6,2657.5,3.2078]
[1739455272587,0.75252,2657.4,2657.1,3.2078]
[1739455272787,0.75252,2657.4,2657.2,0.75255]
[1739455272997,1.88098,2657.8,2657.2,0.75255]
[1739455273188,0.00564493,2657.6,2657.2,0.75255]
[1739455273385,0.00564493,2657.6,2657.1,44.0078]
[1739455273386,0.75256,2657.2,2657.1,3.2078]
[1739455274097,0.75809493,2657.6,2657.4,0.75248]
[1739455274284,0.75810493,2657.6,2657.4,0.75249]
[1739455274489,0.00564493,2657.6,2657.1,3.2078]
[1739455274697,0.00564493,2657.6,2657.5,0.75247]
[1739455274885,0.00564493,2657.6,2657.1,3.2078]
[1739455275091,0.00564493,2657.6,2657.5,7.84987351]
[1739455275293,3.2078,2658.4,2658.1,0.75229]
[1739455275495,2.3309,2658.3,2658.2,0.75228]
[1739455275998,2.4186,2658.5,2658.1,3.88960351]
[1739455276197,3.17079,2658.5,2658.4,3.2078]
[1739455276402,0.75224,2658.4,2658.2,0.75226]
[1739455276792,2.4186,2658.5,2658.1,7.09740351]
[1739455276993,0.00564493,2658.7,2658.6,0.75216]
[1739455277189,4.8234,2659.3,2658.4,7.84959351]
[1739455277387,0.75218,2658.6,2658.4,7.84959351]
[1739455277693,5.08793,2659.1,2658.4,3.2078]
[1739455277992,1.8802,2658.9,2658.1,7.09740351]
[1739455278298,0.75228,2658.2,2658.1,3.2078]
[1739455278498,0.75227,2658.3,2658.2,0.00564493]
[1739455279303,4.913,2658.6,2658.2,0.00564493]
[1739455279598,0.75224,2658.4,2658.2,0.75789493]
[1739455279792,0.75225,2658.3,2658.2,0.00564493]
[1739455280191,4.913,2658.6,2658.2,0.00564493]
[1739455280394,0.75225,2658.3,2658.2,0.00564493]
[1739455280603,0.00564493,2658.8,2658.2,0.00564493]
[1739455280792,0.7522,2658.5,2658.3,0.75223]
[1739455280992,0.00564493,2658.8,2658.2,0.00564493]
[1739455281193,0.00564493,2658.8,2658.4,7.09740351]
[1739455281393,0.75775493,2658.8,2658.7,0.75213]
[1739455281691,0.00564493,2658.8,2658.7,3.95993]
[1739455282800,0.75775493,2658.8,2658.7,3.2078]
[1739455282993,0.75219,2658.5,2658.4,3.2078]
[1739455283194,0.75225,2658.3,2658.2,0.75791493]
[1739455283401,0.75225,2658.3,2658.2,0.00564493]
[1739455284603,4.7634,2658.4,2657.4,8.2952]
[1739455284805,0.75247,2657.5,2657.4,5.776]
[1739455285001,3.2078,2657.8,2657.2,3.88960351]
[1739455285202,8.52461,2658.4,2657.2,7.09740351]
[1739455285203,3.2078,2658.2,2657.2,7.09740351]
[1739455285392,4.30557,2658.1,2657.2,7.09740351]
[1739455285704,4.30557,2658.1,2657.4,0.00564493]
[1739455285705,2.4248,2658.1,2657.4,0.00564493]
[1739455285900,0.75247,2657.5,2657.4,0.00564493]
[1739455286692,3.2078,2657.9,2657.4,0.00564493]
[1739455287199,0.75245,2657.6,2657.5,3.2078]
[1739455287800,0.75247,2657.5,2657.4,0.00564493]
[1739455290105,3.2078,2657.9,2657.4,0.00564493]
[1739455290308,0.75241,2657.8,2657.7,3.2078]
[1739455290606,0.75246,2657.6,2657.5,0.75246]
[1739455290808,4.30561,2658.1,2657.4,3.21344493]
[1739455291110,0.75238,2657.9,2657.8,0.75239]
[1739455291309,2.4248,2658.1,2657.4,3.21344493]
[1739455291503,2.4248,2658.1,2657.5,0.75245]
[1739455291810,0.75247,2657.5,2657.4,3.21344493]
[1739455292007,0.75246,2657.6,2657.5,0.75247]
[1739455292205,0.75247,2657.5,2657.4,0.00564493]
[1739455293508,0.75278,2656.5,2656.4,0.30262221]
[1739455293699,0.75278,2656.5,2656.2,7.351]
[1739455293700,1.88188,2656.6,2656.2,4.8425]
[1739455293901,0.75281,2656.3,2656.2,2.4054]
[1739455295110,0.75284,2656.2,2656.1,40.8]
[1739455295311,3.2078,2656.4,2656.0,0.00564493]
[1739455295506,0.75287,2656.1,2656.0,0.00564493]
[1739455295906,0.75286,2656.2,2656.0,0.00564493]
[1739455296108,0.75286,2656.2,2656.0,0.75853493]
[1739455296308,0.75285,2656.2,2656.0,0.75853493]
[1739455296501,0.00564493,2656.5,2656.0,0.00564493]
[1739455296708,0.00564493,2656.5,2656.2,0.75282]
[1739455296908,0.00564493,2656.5,2656.0,2.45034493]
[1739455297111,0.75281,2656.3,2656.1,0.75285]
[1739455297310,0.7528,2656.4,2656.2,0.75284]
[1739455297505,0.00564493,2656.5,2656.0,2.45034493]
[1739455297714,0.75287,2656.1,2656.0,0.00564493]
[1739455300015,0.75298,2655.7,2655.6,3.2078]
[1739455301308,2.5179,2656.0,2655.6,3.2078]
[1739455301514,2.5179,2656.0,2655.1,43.3267]
[1739455301515,3.2078,2656.8,2655.9,3.2078]
[1739455301717,5.0895,2656.8,2655.9,3.2078]
[1739455301920,2.5179,2656.7,2656.4,0.75279]
[1739455302218,0.75840493,2656.5,2656.4,40.8]
[1739455302710,0.7529,2656.0,2655.9,2.3618]
[1739455303110,0.7529,2656.0,2655.9,43.1618]
[1739455303309,0.7529,2656.0,2655.9,40.8]
[1739455303815,2.4295,2656.3,2655.7,3.2078]
[1739455304016,0.75296,2655.8,2655.7,3.2078]
[1739455304207,0.75296,2655.8,2655.0,4.56610357]
[1739455304208,3.2078,2655.8,2655.0,5.5696]
[1739455304517,0.75312,2655.3,2655.1,41.55315]
[1739455304709,6.84447,2655.7,2655.1,41.55315]
[1739455304910,0.75312,2655.3,2655.1,40.8]
[1739455305211,4.962,2655.7,2655.2,3.2078]
[1739455305420,0.75308,2655.4,2655.3,0.7531]
[1739455305909,4.962,2655.7,2655.2,3.2078]
[1739455306215,0.75306,2655.5,2655.2,3.2078]
[1739455306414,0.75306,2655.5,2655.4,0.75307]
[1739455306616,0.75308,2655.4,2655.3,0.75309]
[1739455307017,4.962,2655.7,2655.4,0.75307]
[1739455307214,0.75301,2655.6,2655.4,0.75307]
[1739455307415,0.75304,2655.5,2655.4,0.75307]
[1739455307619,4.962,2655.7,2655.3,0.75307]
[1739455307813,0.75307,2655.4,2655.3,0.75307]
[1739455308014,0.7531,2655.3,2655.2,3.2078]
[1739455308407,1.88268,2655.4,2654.8,3.2078]
[1739455308821,0.75317,2655.1,2655.0,0.75318]
[1739455309117,5.09041,2655.5,2654.8,3.2078]
[1739455309118,1.88268,2655.4,2654.8,3.2078]
[1739455309419,0.75321,2655.0,2654.9,0.75321]
[1739455309621,0.75321,2655.0,2654.8,3.2078]
[1739455309622,5.09041,2655.5,2654.8,3.2078]
[1739455309914,0.75321,2655.0,2654.9,41.55321]
[1739455310121,1.88832493,2655.4,2654.9,40.8]
[1739455310415,0.75313,2655.2,2655.1,3.96095]
[1739455310613,0.75313,2655.2,2655.1,3.2078]
[1739455312020,3.2078,2655.2,2654.7,5.7794]
[1739455312208,2.4082,2655.1,2654.3,3.2078]
[1739455312409,3.2078,2654.9,2653.9,2.49367012]
[1739455312614,0.75338,2654.4,2654.3,0.75338]
[1739455312915,0.75341,2654.2,2654.1,3.2078]
[1739455313228,0.75344,2654.1,2654.0,40.8]
[1739455314124,0.75347,2654.0,2653.9,5.6602]
[1739455314325,0.75347,2654.0,2653.9,6.41368]
[1739455314517,0.75347,2654.0,2653.9,47.21368]
[1739455314918,3.2078,2654.6,2653.9,46.4602]
[1739455315218,8.0337,2655.0,2654.5,3.2078]
[1739455315418,0.75325,2654.8,2654.7,0.75326]
[1739455315616,0.75325,2654.8,2654.5,3.2078]
[1739455315617,0.75327,2654.7,2654.6,2.4658]
[1739455315817,8.0337,2655.0,2654.5,3.2078]
[1739455316122,0.75327,2654.7,2654.6,40.8]
[1739455317420,4.8259,2655.0,2654.6,40.8]
[1739455317816,0.00564493,2655.4,2654.6,40.8]
[1739455318022,0.75311,2655.3,2655.2,0.75312]
[1739455318223,0.75314,2655.2,2655.1,0.75314]
[1739455318416,0.75314,2655.2,2654.9,3.89558044]
[1739455318723,0.00564493,2655.4,2655.1,3.2078]
[1739455319121,1.882,2656.4,2655.2,3.89558044]
[1739455319324,2.5438,2656.3,2655.6,3.89558044]
[1739455319523,0.75298,2655.8,2655.6,3.89558044]
[1739455319722,0.75298,2655.8,2655.6,4.64859044]
[1739455319925,3.2078,2656.2,2655.6,3.89558044]
[1739455320118,0.75296,2655.8,2655.6,3.89558044]
[1739455320322,0.75296,2655.8,2655.6,4.64859044]
[1739455320523,3.21344493,2656.2,2655.6,4.65423537]
[1739455320726,3.21344493,2656.2,2655.6,3.90122537]
[1739455321027,0.75298,2655.7,2655.6,0.00564493]
[1739455321924,0.00564493,2656.2,2655.6,7.10902537]
[1739455322124,0.00564493,2656.2,2656.1,0.75287]
[1739455322531,0.00564493,2656.2,2655.9,7.85629044]
[1739455322731,0.75289,2656.1,2655.9,47.90338044]
[1739455322927,0.00564493,2656.2,2655.9,44.76071]
[1739455323124,0.00564493,2656.2,2655.9,44.0078]
[1739455323432,0.00564493,2656.2,2656.0,0.7529]
[1739455323935,0.75288,2656.1,2655.9,3.96072]
[1739455324142,0.00564493,2656.2,2655.9,3.2078]
[1739455324333,0.75850493,2656.2,2655.9,3.2078]
[1739455324531,0.75850493,2656.2,2656.0,0.75289]
[1739455324727,0.00564493,2656.2,2655.9,7.10338044]
[1739455325240,0.00564493,2656.2,2655.7,7.4262]
[1739455325432,1.88219,2656.1,2655.7,2.5762]
[1739455325632,0.75298,2655.7,2655.6,0.00564493]
[1739455326133,4.7156,2655.8,2654.9,2.4528]
[1739455326534,0.7531,2655.3,2655.1,3.96093]
[1739455326734,0.75313,2655.2,2655.1,3.2078]
[1739455326929,3.2078,2655.6,2654.9,2.4528]
[1739455327330,3.2078,2655.3,2654.5,5.7146]
[1739455327531,0.75335,2654.4,2654.3,2.4528]
[1739455327735,3.2078,2654.7,2654.1,3.2078]
[1739455327931,5.09099,2654.7,2654.0,3.2078]
[1739455328138,0.75343,2654.2,2653.9,3.30659]
[1739455328327,2.56024493,2654.6,2653.9,2.5531]
[1739455328534,0.75345,2654.1,2653.9,2.5531]
[1739455328739,0.75345,2654.1,2653.8,0.75352]
[1739455328938,0.75344,2654.2,2653.8,0.7535]
[1739455329142,0.75342,2654.2,2653.9,0.75349]
[1739455329736,3.2078,2654.4,2653.7,3.2078]
[1739455329936,0.75343,2654.2,2653.9,0.75348]
[1739455330139,3.2078,2654.4,2653.8,40.8]
[1739455330337,0.75343,2654.2,2653.9,0.75349]
[1739455330635,3.2078,2654.4,2653.8,41.55351]
[1739455330838,0.75341,2654.3,2654.0,0.75347]
[1739455331036,3.2078,2654.4,2653.8,40.8]
[1739455331241,0.75345,2654.1,2653.8,41.55351]
[1739455331542,0.7534,2654.3,2653.8,40.8]
[1739455331747,0.00564493,2654.6,2654.5,0.75332]
[1739455331937,3.2078,2655.6,2654.5,3.2078]
[1739455332242,3.2078,2655.6,2654.6,2.362]
[1739455332243,2.3244,2655.5,2654.6,2.362]
[1739455332543,2.3244,2655.5,2654.7,40.8]
[1739455332743,2.3244,2655.5,2654.7,45.3782386]
[1739455332945,3.07745,2655.5,2655.2,0.75311]
[1739455333243,0.00564493,2655.4,2655.2,3.2078]
[1739455333440,0.75873493,2655.4,2655.2,3.2078]
[1739455333745,0.7531,2655.3,2655.2,3.2078]
[1739455334042,0.75321,2654.9,2654.8,0.00564493]
[1739455335745,0.75341,2654.3,2654.1,3.96123]
[1739455335940,1.88313,2654.8,2654.1,3.96123]
[1739455335941,0.75341,2654.2,2654.1,3.96123]
[1739455336144,3.2078,2654.7,2653.9,7.0895386]
[1739455336537,2.4161,2654.6,2653.9,7.0895386]
[1739455336738,0.75332,2654.5,2654.2,0.00331256]
[1739455337043,3.2078,2655.1,2654.4,3.2078]
[1739455337739,0.7533,2654.6,2654.4,3.96114]
[1739455338042,0.7533,2654.6,2654.5,0.75332]
[1739455338247,0.75338,2654.4,2654.2,0.75671256]
[1739455338544,0.75338,2654.3,2654.2,0.00331256]
[1739455338939,2.4374,2654.7,2654.2,0.00331256]
[1739455339141,2.4374,2654.7,2654.2,3.21111256]
[1739455339339,0.75338,2654.3,2654.2,0.00331256]
[1739455341149,0.75357,2653.7,2653.6,3.2078]
[1739455341344,3.2078,2653.9,2653.3,3.2078]
[1739455341646,0.596,2653.8,2653.0,3.2078]
[1739455341949,0.75366,2653.4,2653.2,0.75368]
[1739455342147,0.596,2653.8,2653.1,40.8]
[1739455342441,0.75366,2653.4,2653.2,0.75369]
[1739455342652,0.75366,2653.4,2653.2,0.75368]
[1739455342944,0.75354,2653.8,2653.3,3.2078]
[1739455343144,0.75352,2653.8,2653.6,0.75357]
[1739455343450,0.75359,2653.6,2653.5,3.2078]
[1739455343649,3.21344493,2653.9,2653.3,0.75364]
[1739455343854,3.21344493,2653.9,2653.2,3.2078]
[1739455344047,3.21344493,2653.9,2653.4,0.75363]
[1739455344248,0.5979,2653.8,2653.2,3.2078]
[1739455345048,0.5979,2653.8,2653.2,3.15629046]
[1739455345246,0.5979,2653.8,2653.2,3.90998046]
[1739455345442,0.75367,2653.3,2653.2,3.15629046]
[1739455346050,3.2078,2653.6,2652.8,3.24908787]
[1739455346245,2.47867,2653.5,2652.8,3.2078]
[1739455346445,2.47867,2653.5,2652.8,3.96158]
[1739455346446,0.75378,2652.9,2652.8,3.96158]
[1739455346654,1.8841,2653.4,2652.8,3.96158]
[1739455346951,0.5946,2653.5,2652.8,3.2078]
[1739455347149,3.21344493,2653.9,2653.1,3.2078]
[1739455347348,0.75365,2653.4,2653.2,0.75369]
[1739455347551,2.48176,2653.8,2653.2,0.75369]
[1739455347752,0.75367,2653.3,2653.2,0.75369]
[1739455348053,0.75378,2652.9,2652.8,3.2078]
[1739455348255,1.88421,2653.3,2652.8,3.2078]
[1739455348546,1.88421,2653.3,2652.8,3.96159]
[1739455348750,0.75378,2652.9,2652.8,3.2078]
[1739455349155,0.5862,2653.2,2652.8,3.2078]
[1739455349352,0.75369,2653.2,2653.1,3.96151]
[1739455349544,0.75369,2653.2,2653.1,3.2078]
[1739455349952,0.75369,2653.2,2653.1,40.8]
[1739455350156,0.5579,2653.8,2653.1,40.8]
[1739455350349,0.75361,2653.5,2653.4,3.2078]
[1739455350548,0.75361,2653.5,2653.1,40.8]
[1739455350549,0.5579,2653.8,2653.1,44.0078]
[1739455350851,0.75369,2653.2,2653.1,44.0078]
[1739455351454,0.5579,2653.8,2653.1,44.0078]
[1739455351655,0.75362,2653.5,2653.4,3.96142]
[1739455351950,0.00564493,2653.9,2653.4,7.10848949]
[1739455352158,0.00564493,2653.9,2653.8,3.96132]
[1739455352951,0.75334,2654.5,2654.2,0.75339]
[1739455353151,0.5787,2654.6,2654.2,7.10848949]
[1739455353456,7.06115782,2655.4,2654.5,7.10848949]
[1739455353659,0.75315,2655.2,2654.8,3.96103]
[1739455353854,0.5787,2655.3,2654.5,3.2078]
[1739455354047,0.75324,2654.9,2654.6,0.00564493]
[1739455354357,0.00564493,2655.2,2654.8,3.2078]
[1739455354753,0.75321,2654.9,2654.8,3.2078]
[1739455354958,1.88846493,2655.2,2654.6,0.00564493]
[1739455355151,0.75326,2654.8,2654.6,0.00564493]
[1739455355660,0.75327,2654.7,2654.6,0.00564493]
[1739455356256,0.00564493,2655.2,2654.6,0.00564493]
[1739455356458,0.75323,2654.9,2654.8,3.2078]
[1739455356649,0.00564493,2655.2,2654.8,3.2078]
[1739455356855,0.00564493,2655.2,2655.1,3.2078]
[1739455357257,0.00564493,2655.2,2655.1,3.96095]
[1739455357453,0.753,2655.7,2655.1,3.2078]
[1739455357659,0.75306,2655.5,2655.2,0.75311]
[1739455357860,0.5835,2655.8,2655.1,3.2078]
[1739455358060,0.75311,2655.3,2655.1,3.2078]
[1739455358456,0.75311,2655.3,2654.6,4.58124311]
[1739455358457,0.5835,2655.8,2654.7,3.2078]
[1739455358653,1.88282,2655.2,2654.6,0.00564493]
[1739455358854,0.75327,2654.7,2654.6,0.00564493]
[1739455360556,3.2078,2655.0,2654.6,0.00564493]
[1739455360860,1.1538,2655.1,2654.6,0.00564493]
[1739455361062,0.00564493,2655.5,2654.8,3.2078]
[1739455361363,0.00564493,2655.5,2655.4,0.75307]
[1739455361555,0.00564493,2655.5,2655.2,3.2078]
[1739455361756,0.00564493,2655.5,2654.9,0.75321]
[1739455362062,0.00564493,2655.5,2654.8,0.75322]
[1739455362360,0.00564493,2655.5,2654.7,3.7588]
[1739455362560,0.75314,2655.2,2655.0,3.2078]
[1739455362760,0.75315,2655.1,2655.0,3.2078]
[1739455363161,0.00564493,2655.5,2654.9,3.2078]
[1739455363357,0.75318,2655.0,2654.9,3.2078]
[1739455363555,0.00564493,2655.5,2655.4,0.75307]
[1739455363854,0.00564493,2655.5,2655.4,3.96087]
[1739455364163,0.00564493,2655.5,2654.8,3.96102]
[1739455364367,0.00564493,2655.5,2655.1,3.2078]
[1739455364561,0.75309,2655.4,2655.2,0.7531]
[1739455364761,0.75309,2655.4,2655.1,3.2078]
[1739455364960,0.00564493,2655.5,2655.1,3.2078]
[1739455364961,0.75313,2655.2,2655.1,3.2078]
[1739455365162,0.75327,2654.7,2654.6,3.21344493]
[1739455365566,1.1279,2655.4,2654.6,3.21344493]
[1739455365771,0.75327,2654.7,2654.6,3.21344493]
[1739455366360,0.75325,2654.8,2654.6,3.96673493]
[1739455366855,0.5792,2655.1,2654.6,3.21344493]
[1739455367259,0.5792,2655.1,2655.0,0.75318]
[1739455367662,0.00564493,2655.5,2654.9,3.2078]
[1739455367862,0.00564493,2655.5,2655.3,0.75309]
[1739455367863,0.75870493,2655.5,2655.3,0.75309]
[1739455368062,0.00564493,2655.5,2655.2,3.2078]
[1739455368369,0.00564493,2655.5,2655.4,0.75307]
[1739455368562,0.00564493,2655.5,2655.3,0.75308]
[1739455368757,0.7531,2655.3,2655.2,3.2078]
[1739455369061,0.75315,2655.2,2655.0,0.75317]
[1739455369268,0.00564493,2655.5,2654.9,3.7831]
[1739455369468,0.00564493,2655.5,2654.6,3.21344493]
[1739455369469,0.75318,2655.0,2654.6,3.21344493]
[1739455369663,0.5908,2655.4,2655.0,0.75317]
[1739455369968,0.75314,2655.2,2655.0,0.75317]
[1739455370165,0.5908,2655.4,2655.0,0.75317]
[1739455370369,0.75318,2655.0,2654.9,3.2078]
[1739455370671,3.2078,2655.3,2654.6,3.21344493]
[1739455370869,0.75327,2654.7,2654.6,3.21344493]
[1739455371766,1.88345,2654.4,2653.6,3.2078]
[1739455372075,3.96125,2654.1,2653.8,0.75351]
[1739455372566,3.2078,2654.1,2653.7,0.75354]
[1739455372870,3.2078,2654.1,2653.7,0.00564493]
[1739455373175,0.00564493,2654.2,2654.1,0.75344]
[1739455373664,0.00564493,2654.2,2654.0,0.75344]
[1739455373861,0.00564493,2654.2,2653.8,3.2078]
[1739455374269,0.00564493,2654.2,2654.1,0.75344]
[1739455374666,0.00564493,2654.2,2653.8,3.2078]
[1739455374861,0.00564493,2654.2,2653.7,0.00564493]
[1739455375067,0.75907493,2654.2,2653.9,0.75347]
[1739455375272,0.00564493,2654.2,2653.8,3.2078]
[1739455375473,0.75906493,2654.2,2653.9,0.75348]
[1739455375673,0.75906493,2654.2,2653.8,3.2078]
[1739455375971,0.75905493,2654.2,2654.0,0.75344]
[1739455376772,0.00564493,2654.2,2653.8,3.2078]
[1739455376966,0.00564493,2654.2,2654.1,0.75344]
[1739455377167,0.00564493,2654.2,2654.1,3.96124]
[1739455377365,3.96108,2654.7,2654.1,9.2078]
[1739455377564,3.2078,2654.7,2654.1,3.2078]
[1739455377765,3.2078,2654.7,2654.0,0.75345]
[1739455377971,0.75344,2654.1,2653.9,1.30718]
[1739455378374,0.75343,2654.2,2654.0,0.75347]
[1739455378577,0.5426,2654.5,2653.9,0.5537]
[1739455378578,0.00564493,2654.3,2654.2,0.75339]
[1739455380378,0.00564493,2654.3,2654.2,0.75341]
[1739455381769,0.75341,2654.2,2654.1,3.96123]
[1739455381978,0.00564493,2654.3,2653.9,1.30718]
[1739455382172,0.00564493,2654.3,2654.2,0.75341]
[1739455382373,0.00564493,2654.3,2654.1,0.75342]
[1739455382674,0.75347,2654.0,2653.9,0.5537]
[1739455382875,0.75352,2653.8,2653.7,0.00564493]
[1739455383172,0.75351,2653.9,2653.7,0.75917493]
[1739455383385,0.75352,2653.8,2653.7,0.00564493]
[1739455384472,0.75369,2653.2,2653.1,0.6002]
[1739455384871,5.09178,2653.6,2653.1,41.4002]
[1739455385078,3.2078,2653.6,2653.1,41.4002]
[1739455385479,0.75367,2653.3,2653.2,0.75369]
[1739455385680,0.75369,2653.2,2653.1,41.40584493]
[1739455386372,0.75368,2653.3,2653.1,42.15955493]
[1739455386568,0.75368,2653.3,2653.1,41.40584493]
[1739455386778,0.597,2653.5,2653.1,41.40584493]
[1739455386978,0.75369,2653.2,2653.1,41.40584493]
[1739455387371,0.75369,2653.2,2653.1,0.60584493]
[1739455387571,0.75368,2653.3,2653.1,1.35955493]
[1739455387775,0.75365,2653.4,2653.2,0.75368]
[1739455388077,3.8045,2654.0,2653.4,0.75364]
[1739455388278,0.75362,2653.5,2653.3,3.96145]
[1739455388482,1.88375,2653.9,2653.1,0.60584493]
[1739455388677,3.2078,2653.7,2653.1,0.60584493]
[1739455388882,0.75366,2653.4,2653.2,0.75368]
[1739455389083,0.75366,2653.4,2653.1,0.60584493]
[1739455389084,0.75363,2653.5,2653.1,0.00564493]
[1739455389285,3.2078,2653.7,2653.1,0.58154493]
[1739455389586,0.75363,2653.5,2653.3,0.75366]
[1739455389884,3.2078,2653.7,2653.2,0.75368]
[1739455390084,3.2078,2653.7,2653.1,0.58154493]
[1739455390085,0.75368,2653.3,2653.1,1.33524493]
[1739455390282,0.75369,2653.2,2653.1,0.00564493]
[1739455390683,1.35099,2653.2,2653.1,0.00564493]
[1739455393082,0.75381,2652.8,2652.7,3.2078]
[1739455393989,0.75385,2652.7,2652.5,1.34708]
[1739455394192,1.1528,2653.2,2652.5,0.5932]
[1739455394383,0.00564493,2652.9,2652.6,3.2078]
[1739455394584,0.75944493,2652.9,2652.7,0.75384]
[1739455394784,0.75381,2652.8,2652.7,0.75384]
[1739455395091,0.00564493,2652.9,2652.8,0.75381]
[1739455395292,0.75942493,2652.9,2652.6,7.10844263]
[1739455395492,0.75942493,2652.9,2652.8,0.75381]
[1739455395692,0.75942493,2652.9,2652.8,40.8]
[1739455396788,0.75942493,2652.9,2652.8,41.55381]
[1739455397097,0.75942493,2652.9,2652.8,40.8]
[1739455397393,0.75384,2652.7,2652.6,3.2078]
[1739455397695,1.89011493,2652.9,2652.8,0.75381]
[1739455397696,0.00564493,2652.9,2652.8,0.75381]
[1739455397890,3.2078,2653.3,2653.2,0.75369]
[1739455397891,3.96147,2653.3,2653.2,0.75369]
[1739455398394,3.2078,2653.3,2652.9,7.10844263]
[1739455398695,0.75375,2653.0,2652.9,0.75377]
[1739455398991,0.00564493,2653.2,2652.9,3.2078]
[1739455399290,0.00564493,2653.2,2653.1,0.75371]
[1739455399497,3.2078,2653.9,2653.1,0.75371]
[1739455399689,3.7951,2653.9,2653.5,0.75358]
[1739455399889,3.7951,2653.9,2653.2,0.593]
[1739455400089,0.75372,2653.1,2653.0,44.0078]
[1739455400397,6.97544,2653.8,2652.6,7.10844263]
[1739455400589,0.75378,2653.0,2652.6,7.10844263]
[1739455400785,0.75374,2653.1,2653.0,0.75374]
[1739455400989,0.75377,2653.0,2652.9,0.75377]
[1739455401190,0.5606,2653.3,2653.0,0.75375]
[1739455401191,0.75374,2653.1,2653.0,0.75375]
[1739455401586,0.5606,2653.3,2652.7,40.80564493]
[1739455401786,0.75381,2652.8,2652.7,0.00564493]
[1739455402298,0.75381,2652.8,2652.7,0.75948493]
[1739455402493,0.75381,2652.8,2652.7,0.00564493]
[1739455403389,0.75381,2652.9,2652.7,0.75948493]
[1739455403700,0.5912,2653.2,2652.7,0.00564493]
[1739455403897,0.75381,2652.8,2652.7,0.00564493]
[1739455404091,0.5912,2653.2,2652.7,0.00564493]
[1739455404486,0.5912,2653.2,2653.1,0.75372]
[1739455404487,1.34489,2653.2,2653.1,0.75372]
[1739455404687,1.34492,2653.2,2653.0,0.75374]
[1739455404891,0.00564493,2653.5,2653.4,0.75364]
[1739455405096,0.00564493,2653.5,2653.4,3.96144]
[1739455407804,0.00564493,2653.5,2653.4,44.76144]
[1739455408897,3.2078,2654.2,2653.4,50.0078]
[1739455409201,0.5438,2654.6,2654.3,0.75338]
[1739455409202,0.5804,2654.4,2654.3,0.75338]
[1739455409499,3.2078,2655.1,2654.3,3.2078]
[1739455409700,0.75328,2654.7,2654.4,0.75334]
[1739455409892,0.5438,2655.0,2654.0,3.2078]
[1739455410198,3.96115,2654.4,2654.3,0.00564493]
[1739455410499,3.2078,2654.4,2653.6,3.2078]
[1739455410793,0.75358,2653.6,2653.5,0.5576]
[1739455411299,3.2078,2654.1,2653.3,3.2078]
[1739455411491,3.2078,2653.5,2653.4,0.00564493]
[1739455411699,3.2078,2653.5,2652.5,0.5878]
[1739455411897,0.7538,2652.9,2652.6,0.75385]
[1739455412195,0.75385,2652.7,2652.5,0.5878]
[1739455412392,3.2078,2653.2,2652.5,0.5878]
[1739455412894,0.75384,2652.7,2652.6,0.00564493]
[1739455413095,0.75379,2652.9,2652.6,0.75949493]
[1739455413297,0.75378,2652.9,2652.6,0.75948493]
[1739455413698,0.75378,2652.9,2652.6,0.75949493]
[1739455413699,0.7538,2652.9,2652.6,0.75949493]
[1739455414300,0.00564493,2653.1,2652.7,3.2078]
[1739455414496,0.00564493,2653.1,2652.6,0.00564493]
[1739455414497,0.00564493,2653.1,2653.0,3.96155]
[1739455414701,0.00564493,2653.1,2652.9,0.75377]
[1739455415005,0.00564493,2653.1,2653.0,0.75375]
[1739455415301,0.00564493,2653.1,2653.0,41.55375]
[1739455415490,0.00564493,2653.1,2653.0,42.40635]
[1739455415892,0.5802,2654.0,2653.0,47.6526]
[1739455416097,3.2078,2654.9,2654.3,0.75338]
[1739455416303,0.75329,2654.7,2654.1,3.2078]
[1739455416499,0.75327,2654.7,2654.4,0.75334]
[1739455416701,0.5802,2655.0,2654.1,3.2078]
[1739455417196,0.5802,2655.0,2654.3,3.96682493]
[1739455417197,0.00564493,2654.8,2654.3,3.96682493]
[1739455417392,0.75335,2654.4,2654.3,3.21344493]
[1739455417597,0.75335,2654.4,2654.3,0.00564493]
[1739455418705,3.96115,2654.4,2654.3,0.00564493]
[1739455418902,0.75351,2653.9,2653.6,0.75357]
[1739455419102,0.75348,2654.0,2653.7,0.75354]
[1739455419309,0.75346,2654.1,2653.8,0.75351]
[1739455419904,0.5962,2654.3,2653.4,0.5599]
[1739455420107,0.75352,2653.8,2653.7,0.00564493]
[1739455421105,0.5818,2654.2,2653.7,0.00564493]
[1739455421307,0.75347,2654.0,2653.7,0.75917493]
[1739455421504,3.804,2654.3,2653.7,0.00564493]
[1739455421813,0.75346,2654.1,2653.8,0.75351]
[1739455422112,0.75345,2654.1,2653.8,0.75351]
[1739455422307,0.75343,2654.2,2653.9,0.75349]
[1739455422710,3.804,2654.3,2653.7,0.00564493]
[1739455422909,3.2078,2654.3,2653.7,0.00564493]
[1739455423105,0.5817,2654.7,2654.2,3.2078]
[1739455423412,0.00564493,2654.8,2654.2,3.2078]
[1739455423714,0.00564493,2654.8,2654.3,41.3724]
[1739455423908,0.00564493,2654.8,2654.7,0.75327]
[1739455424110,1.31943,2655.6,2654.7,4.57929912]
[1739455424315,0.5664,2655.6,2655.1,3.2078]
[1739455424607,3.2078,2656.1,2655.5,0.75304]
[1739455424808,1.90505,2656.2,2655.8,0.75294]
[1739455425014,1.1522,2656.2,2655.7,3.2078]
[1739455425205,0.00564493,2656.3,2655.9,0.75292]
[1739455425407,0.00564493,2656.3,2655.7,3.21344493]
[1739455425603,0.00564493,2656.3,2655.7,0.00564493]
[1739455425809,3.21344493,2656.3,2655.7,0.00564493]
[1739455426308,0.5694,2656.2,2655.7,0.00564493]
[1739455426609,0.75296,2655.8,2655.7,0.00564493]
[1739455428116,3.2078,2656.0,2655.1,3.7802]
[1739455428312,2.45152,2656.2,2654.7,3.96106]